fUSD/lending_fUSD_20251026
["ID","MTS","AMOUNT","RATE_DAILY","PERIOD"]
[392458723,1761502295839,-2366.83,0.00049589,120]
[392458724,1761502295855,-2822.6,0.00049589,120]
[392458725,1761502295870,-704.08,0.00049589,120]
[392458726,1761502295884,-3260.07,0.00049589,120]
[392458727,1761502295900,-1524.98,0.00049589,120]
[392458728,1761502295915,-7969.3,0.00049589,14]
[392458729,1761502295930,-915.47,0.00049589,120]
[392458730,1761502295946,-3261.63,0.00049589,120]
[392458731,1761502295963,-1896.02,0.00049589,120]
[392458732,1761502295978,-2684.62,0.00049589,120]
[392458733,1761502295993,-309.00745595,0.00049589,120]
[392458734,1761502296009,-750.74,0.00049589,120]
[392458735,1761502296025,-3318.43,0.00049589,120]
[392458736,1761502296041,-2291.46,0.00049589,2]
[392458737,1761502296056,-1515.21,0.00049589,120]
[392458738,1761502296073,-2469.89,0.00049589,120]
[392458739,1761502296088,-3266.86,0.00049589,120]
[392458740,1761502296103,-558.1,0.00049589,120]
[392458741,1761502296119,-579.16,0.00049589,120]
[392458742,1761502296132,-500.0,0.00049589,2]
[392458743,1761502296146,-560.89,0.00049589,120]
[392458744,1761502296161,-2000.0,0.0004975,56]
[392458745,1761502296175,-127851.0104579,0.000498,30]
[392458746,1761502296189,-2000.0,0.0004983,63]
[392458747,1761502296204,-500.0,0.0004985,120]
[392458748,1761502296218,-2000.0,0.0004986,59]
[392458749,1761502296233,-500.0,0.00049863,120]
[392458750,1761502296248,-583.15,0.00049863,120]
[392458751,1761502296263,-536.02,0.00049863,120]
[392458752,1761502296277,-588.41,0.00049863,120]
[392458753,1761502296293,-574.84,0.00049863,120]
[392458754,1761502296308,-546.01,0.00049863,120]
[392458755,1761502296322,-872.67,0.00049863,120]
[392458756,1761502296337,-638.78,0.00049863,120]
[392458757,1761502296350,-621.96,0.00049863,120]
[392458758,1761502296366,-3243.76,0.00049863,120]
[392458759,1761502296380,-3325.32,0.00049863,120]
[392458760,1761502296396,-574.04,0.00049863,120]
[392458761,1761502296410,-3293.52,0.00049863,120]
[392458762,1761502296425,-3275.26,0.00049863,120]
[392458763,1761502296440,-3408.96,0.00049863,120]
[392458764,1761502296455,-3360.34,0.00049863,120]
[392458765,1761502296472,-3270.66,0.00049863,120]
[392458766,1761502296486,-834.14,0.00049863,60]
[392458767,1761502296501,-3464.48,0.00049863,120]
[392458768,1761502296517,-3280.36,0.00049863,120]
[392458769,1761502296532,-608.26,0.00049863,120]
[392458770,1761502296547,-3389.04,0.00049863,120]
[392458771,1761502296562,-3318.89,0.00049863,120]
[392458772,1761502296578,-1312.59,0.00049863,30]
[392458773,1761502296592,-618.11,0.00049863,120]
[392458774,1761502296606,-2366.83,0.00049863,120]
[392458775,1761502296622,-2822.6,0.00049863,120]
[392458776,1761502296762,-704.08,0.00049863,120]
[392458777,1761502296772,-3260.07,0.00049863,120]
[392458778,1761502296781,-1524.98,0.00049863,120]
[392458779,1761502296792,-7969.3,0.00049863,14]
[392458780,1761502296803,-915.47,0.00049863,120]
[392458781,1761502296812,-3261.63,0.00049863,120]
[392458782,1761502296822,-1896.02,0.00049863,120]
[392458783,1761502296831,-2684.62,0.00049863,120]
[392458784,1761502296840,-750.74,0.00049863,120]
[392458785,1761502296850,-3318.43,0.00049863,120]
[392458786,1761502296860,-2291.46,0.00049863,2]
[392458787,1761502296869,-1515.21,0.00049863,120]
[392458788,1761502296880,-2469.89,0.00049863,120]
[392458789,1761502296890,-3266.86,0.00049863,120]
[392458790,1761502296899,-558.1,0.00049863,120]
[392458791,1761502296909,-579.16,0.00049863,120]
[392458792,1761502296918,-500.0,0.00049863,2]
[392458793,1761502296927,-560.89,0.00049863,120]
[392458794,1761502296936,-5451.35085936,0.0004999,14]
[392458795,1761502296947,-1000.0,0.00049999,120]
[392458796,1761502296957,-1000.0,0.0005,120]
[392458797,1761502296967,-150.0,0.0005,120]
[392458798,1761502296978,-475.86062907,0.0005,120]
[392458799,1761502296989,-1000000.0,0.0005,120]
[392458800,1761502296999,-1000.0,0.0005,2]
[392458801,1761502297008,-1000.0,0.0005,2]
[392458802,1761502297017,-4795.13,0.0005,120]
[392458803,1761502297026,-1544.64150386,0.0005,120]
[392458804,1761502297035,-26578.6,0.0005,120]
[392458805,1761502297045,-299.7619695,0.0005,120]
[392458806,1761502297054,-256.8018392,0.0005,120]
[392458807,1761502297065,-1144.85507917,0.0005,2]
[392458808,1761502297077,-600.0,0.0005,14]
[392458809,1761502297087,-1345.37143566,0.0005,120]
[392458810,1761502297097,-224.89429776,0.0005,120]
[392458811,1761502297108,-164.97139083,0.0005,120]
[392458812,1761502297118,-500.0,0.0005,30]
[392458813,1761502297130,-202130.52116396,0.0005,30]
[392458814,1761502297140,-200.0,0.0005,120]
[392458815,1761502297150,-200.0,0.0005,120]
[392458816,1761502297159,-11892.0,0.0005,60]
[392458817,1761502297169,-13620.85,0.0005,120]
[392458818,1761502297180,-8859.47,0.0005,120]
[392458819,1761502297190,-933.46,0.0005,30]
[392458820,1761502297201,-189.15091066,0.0005,120]
[392458821,1761502297212,-150.0,0.0005,120]
[392458822,1761502297222,-150.0,0.0005,120]
[392458823,1761502297233,-150.0,0.0005,120]
[392458824,1761502297244,-436.10495958,0.0005,120]
[392458825,1761502297255,-8859.57,0.0005,120]
[392458826,1761502297264,-204.8,0.00050136,120]
[392458827,1761502297275,-583.19080568,0.00050136,120]
[392458828,1761502297286,-536.03459623,0.00050136,120]
[392458829,1761502297297,-588.42174755,0.00050136,120]
[392458830,1761502297306,-574.97003758,0.00050136,120]
[392458831,1761502297315,-546.01182746,0.00050136,120]
[392458832,1761502297324,-872.73511356,0.00050136,120]
[392458833,1761502297334,-638.98836737,0.00050136,120]
[392458834,1761502297343,-622.14,0.00050136,120]
[392458835,1761502297353,-3243.84344866,0.00050136,120]
[392458836,1761502297362,-3325.50023054,0.00050136,120]
[392458837,1761502297372,-574.21073261,0.00050136,120]
[392458838,1761502297382,-3293.74167185,0.00050136,120]
[392458839,1761502297391,-3275.36255443,0.00050136,120]
[392458840,1761502297400,-3409.00339861,0.00050136,120]
[392458841,1761502297409,-3360.55934753,0.00050136,120]
[392458842,1761502297418,-3270.78093829,0.00050136,120]
[392458843,1761502297427,-834.33548884,0.00050136,60]
[392458844,1761502297436,-3464.59450786,0.00050136,120]
[392458845,1761502297446,-3280.42,0.00050136,120]
[392458846,1761502297457,-608.35149766,0.00050136,120]
[392458847,1761502297473,-3389.07881007,0.00050136,120]
[392458848,1761502297482,-3318.91149617,0.00050136,120]
[392458849,1761502297491,-1312.70564301,0.00050136,30]
[392458850,1761502297501,-618.15359652,0.00050136,120]
[392458851,1761502297511,-2366.95771611,0.00050136,120]
[392458852,1761502297521,-2822.60769447,0.00050136,120]
[392458853,1761502297531,-704.20350021,0.00050136,120]
[392458854,1761502297541,-3260.27690273,0.00050136,120]
[392458855,1761502297550,-1525.12503062,0.00050136,120]
[392458856,1761502297559,-7969.36359825,0.00050136,14]
[392458857,1761502297569,-915.52303271,0.00050136,120]
[392458858,1761502297578,-3261.63390928,0.00050136,120]
[392458859,1761502297587,-1896.17732673,0.00050136,120]
[392458860,1761502297597,-2684.63505972,0.00050136,120]
[392458861,1761502297606,-750.78318658,0.00050136,120]
[392458862,1761502297616,-3318.59423801,0.00050136,120]
[392458863,1761502297627,-2291.58928757,0.00050136,2]
[392458864,1761502297637,-1515.40359188,0.00050136,120]
[392458865,1761502297647,-2470.08523699,0.00050136,120]
[392458866,1761502297656,-3267.05435048,0.00050136,120]
[392458867,1761502297666,-558.12601938,0.00050136,120]
[392458868,1761502297675,-579.32,0.00050136,120]
[392458869,1761502297685,-326.31420364,0.00050136,2]
[392458870,1761502297694,-560.93533374,0.00050136,120]
[392458871,1761502297703,-568.0,0.00050237,120]
[392458872,1761502297712,-635.755,0.00050237,120]
[392458873,1761502297722,-1000000.0,0.000505,120]
[392458874,1761502297731,-298.16,0.000505,30]
[392458875,1761502297740,-500.0,0.00050684,120]
[392458876,1761502297749,-500.0,0.0005082,120]
[392458877,1761502297758,-285.309,0.00050924,91]
[392458878,1761502297767,-278.33,0.00050975,2]
[392458879,1761502297777,-150.0,0.00051,120]
[392458880,1761502297786,-1000000.0,0.00051,120]
[392458881,1761502297797,-252.21540562,0.00051,120]
[392458882,1761502297806,-1448.4084979,0.00051,120]
[392458883,1761502297816,-1078.23517744,0.00051,120]
[392458884,1761502297825,-3666.0,0.00051,120]
[392458885,1761502297834,-1511.0,0.00051,120]
[392458886,1761502297843,-1509.0,0.00051,120]
[392458887,1761502297852,-1509.0,0.00051,120]
[392458888,1761502297862,-154.0,0.000511,120]
[392458889,1761502297871,-11864.2522297,0.000513,120]
[392458890,1761502297881,-160.0,0.000516,120]
[392458891,1761502297891,-2000.0,0.0005169,63]
[392458892,1761502297900,-794.38,0.00051759,120]
[392458893,1761502297909,-500.0,0.0005179,120]
[392458894,1761502297919,-5000.0,0.000519,120]
[392458895,1761502297930,-500.0,0.00051973,2]
[392458896,1761502297939,-55000.0,0.00052,120]
[392458897,1761502297950,-150.0,0.00052,120]
[392458898,1761502297959,-1000000.0,0.00052,120]
[392458899,1761502297970,-55000.0,0.00052,120]
[392458900,1761502297981,-5064.3,0.00052,14]
[392458901,1761502297992,-500.0,0.00052054,120]
[392458902,1761502298003,-395.0,0.000521,2]
[392458903,1761502298013,-1055.0,0.000521,2]
[392458904,1761502298022,-373.98340326,0.000521,2]
[392458905,1761502298033,-2000.0,0.0005256,56]
[392458906,1761502298043,-2000.0,0.0005263,55]
[392458907,1761502298052,-323.11,0.00052632,2]
[392458908,1761502298062,-500.0,0.0005276,120]
[392458909,1761502298071,-150.0,0.00053,120]
[392458910,1761502298081,-1000000.0,0.00053,120]
[392458911,1761502298090,-579.8520839,0.00053,2]
[392458912,1761502298099,-3666.0,0.00053,120]
[392458913,1761502298108,-1506.0,0.00053,120]
[392458914,1761502298117,-1595.0,0.00053,120]
[392458915,1761502298126,-1898.0,0.00053,120]
[392458916,1761502298137,-1898.0,0.00053,120]
[392458917,1761502298147,-1898.0,0.00053,120]
[392458918,1761502298156,-449.27490676,0.0005331,2]
[392458919,1761502298165,-154.0,0.000534,120]
[392458920,1761502298175,-500.0,0.00053424,120]
[392458921,1761502298184,-999.0,0.00053424,120]
[392458922,1761502298192,-168.52,0.00053562,30]
[392458923,1761502298201,-500.0,0.0005373,120]
[392458924,1761502298211,-150.0,0.00054,120]
[392458925,1761502298220,-1000000.0,0.00054,120]
[392458926,1761502298229,-1810.51062238,0.00054,120]
[392458927,1761502298238,-1347.79397181,0.00054,120]
[392458928,1761502298248,-250.0,0.00054,30]
[392458929,1761502298257,-28000.0,0.00054,120]
[392458930,1761502298266,-1786.913751,0.000542,120]
[392458931,1761502298276,-160.0,0.000542,120]
[392458932,1761502298285,-150.0,0.00054324,30]
[392458933,1761502298295,-244.52763561,0.00054324,30]
[392458934,1761502298304,-150.0,0.00054324,30]
[392458935,1761502298313,-1417.97758451,0.00054324,30]
[392458936,1761502298418,-150.0,0.00054324,30]
[392458937,1761502298427,-354.10906749,0.00054324,30]
[392458938,1761502298436,-2000.0,0.0005444,49]
[392458939,1761502298446,-2000.0,0.0005444,56]
[392458940,1761502298455,-170007.3535,0.00054444,30]
[392458941,1761502298469,-8364.42,0.0005449,15]
[392458942,1761502298479,-2000.0,0.0005453,73]
[392458943,1761502298488,-500.0,0.000547,120]
[392458944,1761502298497,-155.93086667,0.0005479,120]
[392458945,1761502298507,-155.93086667,0.0005479,120]
[392458946,1761502298515,-155.93086667,0.0005479,120]
[392458947,1761502298525,-155.93086667,0.0005479,120]
[392458948,1761502298535,-155.93086667,0.0005479,120]
[392458949,1761502298544,-155.93086667,0.0005479,120]
[392458950,1761502298554,-155.93086667,0.0005479,120]
[392458951,1761502298562,-155.93086667,0.0005479,120]
[392458952,1761502298572,-155.93086667,0.0005479,120]
[392458953,1761502298581,-155.93086667,0.0005479,120]
[392458954,1761502298591,-155.93086667,0.0005479,120]
[392458955,1761502298601,-155.93086667,0.0005479,120]
[392458956,1761502298610,-155.93086667,0.0005479,120]
[392458957,1761502298620,-155.93086667,0.0005479,120]
[392458958,1761502298629,-155.93086667,0.0005479,120]
[392458959,1761502298638,-155.93086667,0.0005479,120]
[392458960,1761502298648,-155.93,0.0005479,120]
[392458961,1761502298657,-309.26288556,0.0005479,120]
[392458962,1761502298666,-309.26288556,0.0005479,120]
[392458963,1761502298675,-309.26288556,0.0005479,120]
[392458964,1761502298685,-309.26288556,0.0005479,120]
[392458965,1761502298694,-309.26288556,0.0005479,120]
[392458966,1761502298703,-309.26288556,0.0005479,120]
[392458967,1761502298712,-309.26288556,0.0005479,120]
[392458968,1761502298722,-309.26288556,0.0005479,120]
[392458969,1761502298732,-309.26288556,0.0005479,120]
[392458970,1761502298742,-309.26288556,0.0005479,120]
[392458971,1761502298752,-309.26288556,0.0005479,120]
[392458972,1761502298762,-309.26288556,0.0005479,120]
[392458973,1761502298772,-309.26288556,0.0005479,120]
[392458974,1761502298782,-309.26288556,0.0005479,120]
[392458975,1761502298792,-309.26288556,0.0005479,120]
[392458976,1761502298802,-309.26288556,0.0005479,120]
[392458977,1761502298812,-309.26288556,0.0005479,120]
[392458978,1761502298821,-309.26288556,0.0005479,120]
[392458979,1761502298830,-309.26288556,0.0005479,120]
[392458980,1761502298841,-309.26,0.0005479,120]
[392458981,1761502298851,-730.87269069,0.0005479,120]
[392458982,1761502298861,-730.87269069,0.0005479,120]
[392458983,1761502298871,-730.87269069,0.0005479,120]
[392458984,1761502298881,-730.87269069,0.0005479,120]
[392458985,1761502298890,-730.87269069,0.0005479,120]
[392458986,1761502298900,-730.87269069,0.0005479,120]
[392458987,1761502298910,-730.87269069,0.0005479,120]
[392458988,1761502298921,-730.87269069,0.0005479,120]
[392458989,1761502298931,-730.87269069,0.0005479,120]
[392458990,1761502298940,-730.87269069,0.0005479,120]
[392458991,1761502298950,-730.87269069,0.0005479,120]
[392458992,1761502298960,-730.87269069,0.0005479,120]
[392458993,1761502298969,-730.87269069,0.0005479,120]
[392458994,1761502298979,-730.87269069,0.0005479,120]
[392458995,1761502298988,-730.87269069,0.0005479,120]
[392458996,1761502298998,-730.87269069,0.0005479,120]
[392458997,1761502299009,-730.87269069,0.0005479,120]
[392458998,1761502299018,-730.87269069,0.0005479,120]
[392458999,1761502299028,-730.87269069,0.0005479,120]
[392459000,1761502299038,-730.87,0.0005479,120]
[392459001,1761502299047,-1705.3696116,0.0005479,120]
[392459002,1761502299057,-1705.3696116,0.0005479,120]
[392459003,1761502299067,-1705.3696116,0.0005479,120]
[392459004,1761502299076,-1705.3696116,0.0005479,120]
[392459005,1761502299086,-1705.3696116,0.0005479,120]
[392459006,1761502299095,-1705.3696116,0.0005479,120]
[392459007,1761502299105,-1705.3696116,0.0005479,120]
[392459008,1761502299115,-1705.3696116,0.0005479,120]
[392459009,1761502299126,-1705.3696116,0.0005479,120]
[392459010,1761502299136,-1705.3696116,0.0005479,120]
[392459011,1761502299146,-1705.3696116,0.0005479,120]
[392459012,1761502299157,-1705.3696116,0.0005479,120]
[392459013,1761502299167,-1705.3696116,0.0005479,120]
[392459014,1761502299177,-1705.3696116,0.0005479,120]
[392459015,1761502299187,-1705.3696116,0.0005479,120]
[392459016,1761502299196,-1705.3696116,0.0005479,120]
[392459017,1761502299206,-1705.3696116,0.0005479,120]
[392459018,1761502299215,-1705.3696116,0.0005479,120]
[392459019,1761502299225,-1705.3696116,0.0005479,120]
[392459020,1761502299237,-1705.36,0.0005479,120]
[392459021,1761502299247,-843.36020082,0.0005479,120]
[392459022,1761502299257,-843.36020082,0.0005479,120]
[392459023,1761502299267,-843.36020082,0.0005479,120]
[392459024,1761502299275,-843.36020082,0.0005479,120]
[392459025,1761502299285,-843.36020082,0.0005479,120]
[392459026,1761502299294,-843.36020082,0.0005479,120]
[392459027,1761502299304,-843.36020082,0.0005479,120]
[392459028,1761502299313,-843.36020082,0.0005479,120]
[392459029,1761502299322,-843.36020082,0.0005479,120]
[392459030,1761502299331,-843.36020082,0.0005479,120]
[392459031,1761502299340,-843.36020082,0.0005479,120]
[392459032,1761502299350,-843.36020082,0.0005479,120]
[392459033,1761502299359,-843.36020082,0.0005479,120]
[392459034,1761502299368,-843.36020082,0.0005479,120]
[392459035,1761502299377,-843.36020082,0.0005479,120]
[392459036,1761502299388,-843.36020082,0.0005479,120]
[392459037,1761502299398,-843.36020082,0.0005479,120]
[392459038,1761502299409,-843.36020082,0.0005479,120]
[392459039,1761502299418,-843.36020082,0.0005479,120]
[392459040,1761502299429,-843.36,0.0005479,120]
[392459041,1761502299440,-1967.84046857,0.0005479,120]
[392459042,1761502299450,-1967.84046857,0.0005479,120]
[392459043,1761502299464,-1967.84046857,0.0005479,120]
[392459044,1761502299474,-1967.84046857,0.0005479,120]
[392459045,1761502299485,-1967.84046857,0.0005479,120]
[392459046,1761502299495,-1967.84046857,0.0005479,120]
[392459047,1761502299507,-1967.84046857,0.0005479,120]
[392459048,1761502299517,-1967.84046857,0.0005479,120]
[392459049,1761502299527,-1967.84046857,0.0005479,120]
[392459050,1761502299540,-1967.84046857,0.0005479,120]
[392459051,1761502299551,-1967.84046857,0.0005479,120]
[392459052,1761502299562,-1967.84046857,0.0005479,120]
[392459053,1761502299572,-1967.84046857,0.0005479,120]
[392459054,1761502299583,-1967.84046857,0.0005479,120]
[392459055,1761502299592,-1967.84046857,0.0005479,120]
[392459056,1761502299604,-1967.84046857,0.0005479,120]
[392459057,1761502299615,-1967.84046857,0.0005479,120]
[392459058,1761502299626,-1967.84046857,0.0005479,120]
[392459059,1761502299636,-1967.84046857,0.0005479,120]
[392459060,1761502299647,-1967.84,0.0005479,120]
[392459061,1761502299658,-500.0,0.00054794,120]
[392459062,1761502299668,-500.0,0.00054794,120]
[392459063,1761502299678,-386.77125338,0.00054794,120]
[392459064,1761502299687,-500.0,0.00054794,120]
[392459065,1761502299696,-2500.0,0.00054794,120]
[392459066,1761502299705,-852.45888293,0.00054794,120]
[392459067,1761502299714,-273.76984479,0.00054795,2]
[392459068,1761502299723,-44002.94309568,0.000548,120]
[392459069,1761502299731,-1171.0564347,0.000548,120]
[392459070,1761502299740,-10958.49082201,0.000548,120]
[392459071,1761502299750,-441.96077361,0.0005495,120]
[392459072,1761502299759,-150.0,0.00055,120]
[392459073,1761502299769,-1000000.0,0.00055,120]
[392459074,1761502299778,-26578.6,0.00055,120]
[392459075,1761502299787,-2234.16312125,0.00055,120]
[392459076,1761502299796,-83590.0,0.00055,15]
[392459077,1761502299805,-100000.00005195,0.00055,30]
[392459078,1761502299815,-2471.57180973,0.00055,2]
[392459079,1761502299824,-214.54720033,0.00055,120]
[392459080,1761502299833,-500.0,0.00055,30]
[392459081,1761502299842,-3666.0,0.00055,120]
[392459082,1761502299852,-1511.0,0.00055,120]
[392459083,1761502299861,-1509.0,0.00055,120]
[392459084,1761502299870,-8859.47,0.00055,120]
[392459085,1761502299879,-272.649486,0.00055,100]
[392459086,1761502299888,-1509.0,0.00055,120]
[392459087,1761502299898,-8859.57,0.00055,120]
[392459088,1761502299907,-5555.0,0.0005555,120]
[392459089,1761502299916,-500.0,0.00055671,120]
[392459090,1761502299927,-313.09,0.00055727,120]
[392459091,1761502299936,-154.0,0.000558,120]
[392459092,1761502299946,-44002.94309568,0.000558,120]
[392459093,1761502299955,-10958.49082201,0.000558,120]
[392459094,1761502299965,-150.0,0.00056,120]
[392459095,1761502299974,-1000000.0,0.00056,120]
[392459096,1761502299984,-1810.51062237,0.00056,120]
[392459097,1761502299994,-1347.79397181,0.00056,120]
[392459098,1761502300004,-368.32,0.00056018,120]
[392459099,1761502300013,-500.0,0.00056164,120]
[392459100,1761502300023,-2000.0,0.0005635,65]
[392459101,1761502300032,-266.046768,0.00056641,120]
[392459102,1761502300042,-160.0,0.000567,120]
[392459103,1761502300051,-44002.94309568,0.000568,120]
[392459104,1761502300061,-10958.49082201,0.000568,120]
[392459105,1761502300070,-2000.0,0.0005685,64]
[392459106,1761502300079,-150.0,0.00057,120]
[392459107,1761502300089,-1000000.0,0.00057,120]
[392459108,1761502300099,-3666.0,0.00057,120]
[392459109,1761502300108,-2633.41205731,0.00057,120]
[392459110,1761502300119,-1142.82,0.0005716,120]
[392459111,1761502300128,-395.73635208,0.000575,30]
[392459112,1761502300138,-1055.50322506,0.000575,30]
[392459113,1761502300147,-505.94724838,0.00057534,120]
[392459114,1761502300158,-44002.94309568,0.000578,120]
[392459115,1761502300167,-10958.49082201,0.000578,120]
[392459116,1761502300176,-150.0,0.00058,120]
[392459117,1761502300186,-1000000.0,0.00058,120]
[392459118,1761502300195,-1506.0,0.00058,120]
[392459119,1761502300204,-1595.0,0.00058,120]
[392459120,1761502300213,-1444.0,0.00058082,120]
[392459121,1761502300222,-154.0,0.000581,120]
[392459122,1761502300231,-172.1844502,0.00058271,120]
[392459123,1761502300241,-2000.0,0.0005863,61]
[392459124,1761502300250,-2000.0,0.0005874,68]
[392459125,1761502300259,-44002.94209568,0.000588,120]
[392459126,1761502300269,-10958.48982201,0.000588,120]
[392459127,1761502300278,-444.0,0.00058986,120]
[392459128,1761502300286,-150.0,0.00059,120]
[392459129,1761502300295,-1000000.0,0.00059,120]
[392459130,1761502300304,-3666.0,0.00059,120]
[392459131,1761502300313,-5000.0,0.00059,60]
[392459132,1761502300323,-1511.0,0.00059,120]
[392459133,1761502300332,-1509.0,0.00059,120]
[392459134,1761502300341,-1509.0,0.00059,120]
[392459135,1761502300351,-574.56376079,0.0005909,2]
[392459136,1761502300360,-323.11,0.0005912,2]
[392459137,1761502300370,-160.0,0.000592,120]
[392459138,1761502300379,-1236.52464645,0.000599,120]
[392459139,1761502300392,-1000.0,0.00059999,120]
[392459140,1761502300402,-1000.0,0.0006,120]
[392459141,1761502300414,-510.0,0.0006,120]
[392459142,1761502300424,-214.40739466,0.0006,120]
[392459143,1761502300434,-26578.6,0.0006,120]
[392459144,1761502300443,-603878.74409635,0.0006,120]
[392459145,1761502300452,-172.60883776,0.0006,120]
[392459146,1761502300462,-1166.60286955,0.0006,30]
[392459147,1761502300472,-625.05150833,0.0006,2]
[392459148,1761502300482,-24550.84634596,0.0006,120]
[392459149,1761502300491,-486.83366899,0.0006,120]
[392459150,1761502300501,-212.72507339,0.0006,120]
[392459151,1761502300510,-300.0,0.0006,2]
[392459152,1761502300519,-1678.13784911,0.0006,120]
[392459153,1761502300530,-8859.47,0.0006,120]
[392459154,1761502300541,-8859.57,0.0006,120]
[392459155,1761502300550,-241.03,0.000602,7]
[392459156,1761502300559,-2382.9,0.000602,7]
[392459157,1761502300568,-1377.77,0.000603,120]
[392459158,1761502300577,-154.0,0.000605,120]
[392459159,1761502300586,-150.0,0.00061,120]
[392459160,1761502300596,-3666.0,0.00061,120]
[392459161,1761502300606,-3300.83667856,0.00061321,2]
[392459162,1761502300615,-189.31448423,0.0006137,2]
[392459163,1761502300624,-999.0,0.00061643,120]
[392459164,1761502300633,-160.0,0.000618,120]
[392459165,1761502300642,-5429.21384878,0.000618,120]
[392459166,1761502300651,-150.0,0.00062,120]
[392459167,1761502300660,-298.16,0.00062,60]
[392459168,1761502300669,-20036.90682174,0.00062,120]
[392459169,1761502300679,-5064.3,0.00062,30]
[392459170,1761502300688,-1000.0,0.000625,2]
[392459171,1761502300698,-154.0,0.000629,120]
[392459172,1761502300708,-5000.0,0.000629,120]
[392459173,1761502300718,-217.0,0.00062916,120]
[392459174,1761502300727,-217.0,0.00062916,120]
[392459175,1761502300736,-217.0,0.00062916,120]
[392459176,1761502300746,-217.0,0.00062916,120]
[392459177,1761502300755,-217.0,0.00062916,120]
[392459178,1761502300765,-217.0,0.00062916,120]
[392459179,1761502300775,-217.0,0.00062916,120]
[392459180,1761502300784,-217.0,0.00062916,120]
[392459181,1761502300794,-217.0,0.00062916,120]
[392459182,1761502300804,-217.0,0.00062916,120]
[392459183,1761502300813,-217.0,0.00062916,120]
[392459184,1761502300823,-217.0,0.00062916,120]
[392459185,1761502300834,-181.0,0.00062916,120]
[392459186,1761502300844,-181.0,0.00062916,120]
[392459187,1761502300854,-181.0,0.00062916,120]
[392459188,1761502300864,-181.0,0.00062916,120]
[392459189,1761502300874,-181.0,0.00062916,120]
[392459190,1761502300883,-181.0,0.00062916,120]
[392459191,1761502300892,-181.0,0.00062916,120]
[392459192,1761502300902,-181.0,0.00062916,120]
[392459193,1761502300912,-181.0,0.00062916,120]
[392459194,1761502300921,-209.0,0.00062916,120]
[392459195,1761502300931,-209.0,0.00062916,120]
[392459196,1761502300941,-209.0,0.00062916,120]
[392459197,1761502300950,-209.0,0.00062916,120]
[392459198,1761502300959,-209.0,0.00062916,120]
[392459199,1761502300968,-209.0,0.00062916,120]
[392459200,1761502300978,-209.0,0.00062916,120]
[392459201,1761502300987,-209.0,0.00062916,120]
[392459202,1761502300997,-209.0,0.00062916,120]
[392459203,1761502301006,-209.0,0.00062916,120]
[392459204,1761502301016,-209.0,0.00062916,120]
[392459205,1761502301027,-209.0,0.00062916,120]
[392459206,1761502301036,-158.0,0.00062916,120]
[392459207,1761502301046,-158.0,0.00062916,120]
[392459208,1761502301055,-158.0,0.00062916,120]
[392459209,1761502301065,-158.0,0.00062916,120]
[392459210,1761502301075,-158.0,0.00062916,120]
[392459211,1761502301085,-158.0,0.00062916,120]
[392459212,1761502301095,-158.0,0.00062916,120]
[392459213,1761502301104,-158.0,0.00062916,120]
[392459214,1761502301114,-158.0,0.00062916,120]
[392459215,1761502301125,-213.0,0.00062916,120]
[392459216,1761502301134,-213.0,0.00062916,120]
[392459217,1761502301143,-213.0,0.00062916,120]
[392459218,1761502301153,-213.0,0.00062916,120]
[392459219,1761502301162,-213.0,0.00062916,120]
[392459220,1761502301286,-213.0,0.00062916,120]
[392459221,1761502301297,-213.0,0.00062916,120]
[392459222,1761502301306,-213.0,0.00062916,120]